bitfinex-derivatives/quotes_SOLF0:USTF0_20250817
["timestamp","ask_amount","ask_price","bid_price","bid_amount"]
[1755424175651,2.82,191.93,191.76,2.87]
[1755424177249,2.82,191.93,191.78,2.87]
[1755424179450,3.83703164,191.92,191.78,2.87]
[1755424179754,2.82,191.9,191.76,2.87]
[1755424183953,2.82,191.97,191.76,2.87]
[1755424184259,4.82295828,191.96,191.76,2.87]
[1755424184456,2.82,191.97,191.76,2.87]
[1755424184655,2.82,191.95,191.78,2.87]
[1755424187646,2.82,191.95,191.79,3.02]
[1755424191858,2.82,191.95,191.8,3.02]
[1755424192761,2.82,191.95,191.79,128.44]
[1755424192961,2.82,191.95,191.8,3.02]
[1755424194060,2.82,191.95,191.81,3.02]
[1755424207371,3.06,192.03,191.81,3.02]
[1755424207575,3.06,192.01,191.81,3.02]
[1755424208170,3.06,192.01,191.82,11.62202988]
[1755424208362,3.06,192.01,191.83,190.4]
[1755424208568,3.06,192.01,191.84,3.02]
[1755424211982,3.06,192.01,191.86,3.02]
[1755424219780,3.06,192.01,191.88,3.06]
[1755424221195,3.01,191.99,191.88,3.06]
[1755424229394,3.81091094,191.98,191.88,3.06]
[1755424229694,3.01,191.97,191.88,3.06]
[1755424229897,3.81000305,191.96,191.88,3.06]
[1755424230097,3.01,191.97,191.88,3.06]
[1755424230298,3.01,191.95,191.88,3.06]
[1755424245910,3.01,192.03,191.88,3.06]
[1755424246117,3.01,192.01,191.88,3.06]
[1755424249207,2.79,192.08,191.88,3.06]
[1755424249410,2.79,192.06,191.88,3.06]
[1755424249604,2.79,192.04,191.88,3.06]
[1755424252116,2.79,192.04,191.89,62.0]
[1755424252419,2.79,192.04,191.9,3.03]
[1755424252615,2.79,192.04,191.89,62.0]
[1755424252616,2.79,192.04,191.92,3.03]
[1755424252916,2.79,192.09,191.92,3.03]
[1755424254820,2.79,192.09,191.94,3.03]
[1755424255215,2.79,192.09,191.95,128.3]
[1755424255411,2.79,192.09,191.96,3.03]
[1755424255612,2.79,192.09,191.97,3.03]
[1755424260819,2.79,192.09,191.98,128.26]
[1755424261015,2.79,192.09,191.98,131.29]
[1755424261215,2.79,192.09,191.99,3.03]
[1755424266228,2.79,192.13,191.99,3.03]
[1755424267323,2.79,192.13,192.0,62.0]
[1755424267516,2.79,192.13,192.01,3.03]
[1755424268323,2.79,192.15,192.01,3.03]
[1755424269922,2.79,192.15,192.02,128.26]
[1755424270126,2.79,192.15,192.03,3.03]
[1755424272635,2.79,192.15,192.05,3.03]
[1755424275231,2.79,192.15,192.06,128.24]
[1755424275939,2.79,192.15,192.06,131.27]
[1755424276432,2.79,192.15,192.06,128.24]
[1755424277536,2.79,192.15,192.04,349.62]
[1755424277936,2.79,192.15,192.05,128.28]
[1755424283052,2.93,192.13,192.0,128.2]
[1755424283250,2.93,192.11,192.0,128.2]
[1755424283550,15.64,192.16,192.0,128.2]
[1755424283551,2.93,192.09,192.0,128.2]
[1755424284349,2.93,192.09,192.0,131.0]
[1755424287740,2.93,192.09,192.01,2.8]
[1755424289849,3.85220151,192.08,192.01,2.8]
[1755424290056,2.93,192.07,192.01,2.8]
[1755424295848,3.86475405,192.06,191.99,2.8]
[1755424296049,2.93,192.05,191.99,2.8]
[1755424300060,2.93,192.04,191.99,2.8]
[1755424300261,2.93,192.06,191.99,2.8]
[1755424303561,15.64,192.14,191.99,2.8]
[1755424303767,2.93,192.12,191.99,2.8]
[1755424306062,3.86615904,192.11,191.99,2.8]
[1755424306254,2.93,192.1,191.99,2.8]
[1755424314261,2.84,192.18,191.99,2.8]
[1755424314574,2.84,192.16,191.99,2.8]
[1755424314873,2.84,192.14,191.99,2.8]
[1755424315074,3.87088154,192.13,191.99,2.8]
[1755424315265,2.84,192.12,191.99,2.8]
[1755424318479,2.84,192.18,191.99,2.8]
[1755424318671,8.24504898,192.17,191.99,2.8]
[1755424318975,365.28,192.19,191.99,2.8]
[1755424318976,2.84,192.15,191.99,2.8]
[1755424319179,2.84,192.13,191.99,2.8]
[1755424324790,5.84231536,192.21,191.99,2.8]
[1755424324791,2.84,192.2,191.99,2.8]
[1755424324991,2.84,192.18,191.99,2.8]
[1755424325185,3.88248189,192.17,191.99,2.8]
[1755424325377,2.84,192.15,191.99,2.8]
[1755424325883,2.84,192.15,192.01,3.0]
[1755424326386,2.84,192.13,192.01,3.0]
[1755424333197,2.84,192.13,192.03,3.0]
[1755424342805,2.97,192.11,192.03,3.0]
[1755424346202,3.87142118,192.1,192.03,3.0]
[1755424346403,2.97,192.09,192.03,3.0]
[1755424347004,5.84231536,192.18,192.03,3.0]
[1755424347208,2.97,192.11,192.03,3.0]
[1755424352001,2.97,192.11,192.01,2.79]
[1755424352201,2.97,192.09,192.01,2.79]
[1755424352419,3.87357917,192.08,192.01,2.79]
[1755424352616,2.97,192.06,192.01,2.79]
[1755424352918,2.97,192.06,192.02,2.79]
[1755424353910,2.97,192.06,192.03,2.79]
[1755424354708,2.97,192.06,192.02,2.79]
[1755424358517,2.97,192.06,192.03,2.79]
[1755424362923,2.97,192.06,191.97,128.18]
[1755424363117,2.97,192.06,192.04,2.79]
[1755424365421,5.84231536,192.15,192.04,2.79]
[1755424365724,2.97,192.05,192.04,2.79]
[1755424371633,2.82,192.08,192.04,2.79]
[1755424372337,2.82,192.07,192.04,2.79]
[1755424374040,5.84231536,192.16,191.97,128.18]
[1755424374241,14.22408941,192.15,191.98,3.07]
[1755424374439,8.66455538,192.14,191.98,3.07]
[1755424374637,2.82,192.12,191.98,3.07]
[1755424374838,2.82,192.1,191.98,3.07]
[1755424375134,2.82,192.08,191.98,3.07]
[1755424375539,2.82,192.08,191.99,3.07]
[1755424386249,2.82,192.06,191.99,3.07]
[1755424396363,3.87510268,192.05,191.99,3.07]
[1755424396562,2.82,192.05,191.99,3.07]
[1755424396867,5.84231536,192.12,191.99,3.07]
[1755424397063,2.82,192.1,191.99,3.07]
[1755424397266,8.69664677,192.09,191.99,3.07]
[1755424397475,2.94,192.07,191.99,3.07]
[1755424397768,8.69664677,192.06,191.99,3.07]
[1755424398065,2.94,192.07,191.99,3.07]
[1755424398275,2.94,192.11,191.99,3.07]
[1755424398463,8.69515602,192.1,191.99,3.07]
[1755424398664,2.94,192.11,191.99,3.07]
[1755424398869,2.94,192.09,191.99,3.07]
[1755424399875,2.94,192.09,192.0,128.1]
[1755424400167,2.94,192.09,192.01,2.94]
[1755424400568,2.94,192.09,192.02,2.94]
[1755424400961,2.94,192.07,192.03,2.94]
[1755424401468,2.94,192.07,192.0,2.94]
[1755424401871,2.94,192.14,192.0,2.94]
[1755424402059,2.94,192.12,192.0,2.94]
[1755424402263,8.5984289,192.11,192.0,2.94]
[1755424402467,2.94,192.09,192.0,2.94]
[1755424402667,3.87113918,192.08,192.0,2.94]
[1755424402966,2.94,192.07,192.0,2.94]
[1755424416185,2.94,192.15,192.0,2.94]
[1755424416390,2.94,192.13,192.0,2.94]
[1755424416579,2.94,192.11,192.0,2.94]
[1755424416884,2.94,192.09,192.0,2.94]
[1755424418487,2.94,192.09,192.02,2.94]
[1755424421294,3.86138626,192.08,192.02,2.94]
[1755424421492,2.94,192.07,192.02,2.94]
[1755424422597,5.84231536,192.15,192.02,2.94]
[1755424422891,2.94,192.06,192.02,2.94]
[1755424423088,2.94,192.15,192.02,2.94]
[1755424423291,2.94,192.13,192.02,2.94]
[1755424423491,2.94,192.11,192.02,2.94]
[1755424423694,2.94,192.09,192.02,2.94]
[1755424427400,2.94,192.09,192.02,3.03]
[1755424432407,3.86190606,192.08,192.02,3.03]
[1755424432605,2.93,192.07,192.02,3.03]
[1755424432906,2.93,192.06,192.02,3.03]
[1755424433406,2.93,192.14,192.02,3.03]
[1755424433607,2.93,192.12,192.02,3.03]
[1755424433800,2.93,192.1,192.02,3.03]
[1755424434103,2.93,192.08,192.02,3.03]
[1755424440408,2.93,192.15,192.02,3.03]
[1755424440611,2.93,192.13,192.02,3.03]
[1755424440907,2.93,192.11,192.02,3.03]
[1755424441108,2.93,192.09,192.02,3.03]
[1755424443607,2.93,192.09,192.07,1.33484331]
[1755424443811,2.93,192.09,192.08,3.03]
[1755424444006,11.53098756,192.09,192.07,1.33484331]
[1755424444206,2.93,192.08,192.07,4.36484331]
[1755424448114,2.93,192.08,192.07,3.03]
[1755424464620,4.34484331,192.14,192.07,3.03]
[1755424464922,3.01,192.12,192.07,3.03]
[1755424465117,3.01,192.1,192.07,3.03]
[1755424465314,3.01,192.08,192.07,3.03]
[1755424466520,3.01,192.13,192.07,3.03]
[1755424466717,8.61124436,192.12,192.07,3.03]
[1755424467018,3.01,192.1,192.07,3.03]
[1755424467922,5.84231536,192.16,192.09,3.04]
[1755424467923,3.01,192.15,192.09,3.04]
[1755424468216,3.01,192.13,192.09,1.33484331]
[1755424468422,3.01,192.11,192.1,3.04]
[1755424468722,11.62226673,192.11,192.1,3.04]
[1755424469621,11.62226673,192.11,192.09,1.33484331]
[1755424469822,11.62226673,192.1,192.09,4.37484331]
[1755424474127,11.62346699,192.1,192.09,4.37484331]
[1755424474526,6.88013779,192.1,192.09,4.37484331]
[1755424474729,11.62548961,192.1,192.09,4.37484331]
[1755424475027,11.62549218,192.1,192.09,4.37484331]
[1755424476128,11.62549218,192.1,192.09,3.04]
[1755424477732,11.62632445,192.1,192.09,3.04]
[1755424483537,6.88013779,192.1,192.09,3.04]
[1755424483733,8.61660266,192.1,192.09,3.04]
[1755424483932,11.62660266,192.1,192.09,3.04]
[1755424484132,11.62660266,192.1,192.09,4.37484331]
[1755424484436,11.62695202,192.1,192.09,4.37484331]
[1755424484734,11.62695202,192.1,192.09,3.04]
[1755424485432,11.62695202,192.1,192.09,4.37484331]
[1755424485637,6.88013779,192.1,192.09,4.37484331]
[1755424486026,6.88013779,192.1,192.09,3.04]
[1755424486244,6.88013779,192.1,192.09,4.37484331]
[1755424487138,3.01,192.1,192.09,4.37484331]
[1755424490937,1.33484331,192.16,192.09,4.37484331]
[1755424491141,2.83,192.14,192.1,2.83]
[1755424491442,8.5906415,192.13,192.1,2.83]
[1755424491643,2.83,192.11,192.1,2.83]
[1755424491838,6.7004803,192.11,192.1,2.83]
[1755424495136,6.7004803,192.11,192.1,4.16484331]
[1755424498545,3.8704803,192.11,192.1,4.16484331]
[1755424499040,6.7004803,192.11,192.1,4.16484331]
[1755424500348,6.7004803,192.11,192.1,2.83]
[1755424500646,6.7004803,192.11,192.1,4.16484331]
[1755424500943,6.7004803,192.11,192.1,1.33484331]
[1755424501244,6.7004803,192.11,192.1,4.16484331]
[1755424509554,2.83,192.18,192.11,2.83]
[1755424509754,11.42378683,192.17,192.16,4.16484331]
[1755424510048,6.70186329,192.17,192.16,4.16484331]
[1755424510441,6.70186329,192.17,192.16,1.33484331]
[1755424510845,6.70186329,192.17,192.16,4.16484331]
[1755424512346,2.83,192.17,192.16,4.16484331]
[1755424512744,2.83,192.19,192.16,4.16484331]
[1755424512944,5.84231536,192.26,192.1,127.76]
[1755424512945,2.83,192.23,192.19,2.83]
[1755424513145,2.83,192.23,192.2,4.16484331]
[1755424514056,2.83,192.23,192.18,1.33484331]
[1755424514361,2.83,192.23,192.2,1.33484331]
[1755424514849,2.83,192.23,192.19,2.83]
[1755424515551,2.83,192.23,192.21,2.83]
[1755424517352,2.83,192.23,192.2,1.33484331]
[1755424517855,2.83,192.23,192.2,4.41484331]
[1755424518062,2.83,192.23,192.2,3.08]
[1755424518352,2.81,192.25,192.2,3.08]
[1755424520556,2.81,192.26,192.22,3.08]
[1755424520854,2.81,192.26,192.23,3.08]
[1755424521655,3.843682,192.25,192.23,3.08]
[1755424521860,6.653682,192.24,192.23,3.08]
[1755424522455,6.65286097,192.24,192.23,3.08]
[1755424523757,3.84286097,192.24,192.23,4.41484331]
[1755424523959,2.81,192.3,192.24,3.08]
[1755424524160,3.84304453,192.29,192.26,3.08]
[1755424524356,2.81,192.27,192.26,3.08]
[1755424524555,6.65304453,192.27,192.26,3.08]
[1755424525661,2.81,192.26,192.24,3.08]
[1755424526259,2.81,192.26,192.23,1.33484331]
[1755424526560,2.81,192.26,192.25,3.08]
[1755424529955,224.70123757,192.32,192.25,3.08]
[1755424530164,2.81,192.3,192.27,3.08]
[1755424530361,2.81,192.29,192.27,3.08]
[1755424531160,2.81,192.31,192.27,3.08]
[1755424531356,2.81,192.31,192.29,3.08]
[1755424531858,2.81,192.31,192.28,3.08]
[1755424532259,2.81,192.31,192.3,3.08]
[1755424532459,2.81,192.38,192.3,3.08]
[1755424532754,2.81,192.38,192.14,189.66]
[1755424532755,2.81,192.36,192.33,1.33484331]
[1755424532959,2.81,192.34,192.31,4.41484331]
[1755424533155,3.837732,192.35,192.31,4.41484331]
[1755424533156,2.81,192.39,192.32,3.08]
[1755424533461,2.81,192.36,192.35,1.33484331]
[1755424533961,2.81,192.37,192.36,3.08]
[1755424536162,2.81,192.37,192.34,4.41484331]
[1755424536654,2.81,192.37,192.35,3.08]
[1755424536852,2.81,192.36,192.34,1.33484331]
[1755424537557,2.81,192.36,192.35,3.08]
[1755424541564,2.81,192.39,192.35,3.08]
[1755424541754,2.81,192.38,192.35,3.08]
[1755424542964,2.81,192.37,192.35,3.08]
[1755424543259,2.81,192.37,192.35,1.33484331]
[1755424543467,2.81,192.37,192.36,3.08]
[1755424544165,2.81,192.39,192.36,3.08]
[1755424544373,96.82972663,192.4,192.36,3.08]
[1755424544666,2.81,192.38,192.37,1.33484331]
[1755424544968,96.82972663,192.4,192.37,1.33484331]
[1755424545160,99.63972663,192.4,192.39,4.41484331]
[1755424546574,96.82972663,192.4,192.39,4.41484331]
[1755424546766,99.63972663,192.4,192.39,4.41484331]
[1755424547476,99.63972663,192.4,192.39,3.08]
[1755424547775,2.9,192.39,192.38,2.86]
[1755424548768,2.9,192.39,192.37,1.33484331]
[1755424549067,2.9,192.39,192.35,2.86]
[1755424549577,2.9,192.39,192.36,2.86]
[1755424550971,2.9,192.39,192.31,2.86]
[1755424551165,2.9,192.37,192.31,2.86]
[1755424551962,2.9,192.37,192.29,2.86]
[1755424552274,2.9,192.35,192.29,2.86]
[1755424552671,3.81683702,192.34,192.29,2.86]
[1755424552876,2.9,192.33,192.29,2.86]
[1755424554574,2.9,192.33,192.3,2.86]
[1755424556980,2.9,192.33,192.26,2.86]
[1755424557175,102.67204199,192.4,192.26,2.86]
[1755424557380,2.9,192.38,192.26,2.86]
[1755424557575,98.90978778,192.4,192.26,2.86]
[1755424557576,2.9,192.36,192.26,2.86]
[1755424557773,2.9,192.34,192.26,2.86]
[1755424558778,2.9,192.32,192.26,2.86]
[1755424560582,2.9,192.3,192.26,2.86]
[1755424560983,2.9,192.3,192.22,2.08006115]
[1755424561183,2.9,192.3,192.27,2.86]
[1755424561385,2.9,192.3,192.23,2.86]
[1755424571792,2.9,192.28,192.23,2.86]
[1755424573190,2.9,192.28,192.15,349.24]
[1755424573191,2.9,192.26,192.17,2.86]
[1755424580487,2.9,192.26,192.17,4.94006115]
[1755424580689,2.9,192.26,192.18,2.87]
[1755424591797,2.9,192.26,192.19,2.08006115]
[1755424592001,2.9,192.26,192.2,2.87]
[1755424598709,3.84608472,192.25,192.2,2.87]
[1755424599012,2.9,192.26,192.2,2.87]
[1755424599314,3.04,192.24,192.2,2.87]
[1755424599714,3.04,192.31,192.18,2.87]
[1755424599916,3.04,192.29,192.18,2.87]
[1755424600114,3.04,192.27,192.18,2.87]
[1755424600418,3.04,192.25,192.18,2.87]
[1755424604413,3.04,192.3,192.18,2.87]
[1755424604618,8.17205137,192.29,192.18,2.87]
[1755424604820,8.17205137,192.28,192.18,2.87]
[1755424605020,6.87808064,192.27,192.18,2.87]
[1755424605215,6.87808064,192.26,192.18,2.87]
[1755424605520,3.83808064,192.25,192.18,2.87]
[1755424606718,3.04,192.26,192.18,2.87]
[1755424606914,3.04,192.26,192.2,2.08006115]
[1755424607114,3.04,192.26,192.21,2.87]
[1755424607611,2.85,192.31,192.21,2.87]
[1755424607819,2.85,192.29,192.21,2.87]
[1755424608020,2.85,192.27,192.21,2.87]
[1755424608220,3.83841838,192.26,192.21,2.87]
[1755424608420,2.85,192.24,192.21,2.87]
[1755424609518,7.92237651,192.32,192.21,2.87]
[1755424609825,2.85,192.23,192.21,2.87]
[1755424610324,2.85,192.22,192.21,2.87]
[1755424612322,2.85,192.22,192.17,2.08006115]
[1755424612519,2.85,192.22,192.19,2.88]
[1755424612719,2.85,192.22,192.2,2.88]
[1755424613225,2.85,192.22,192.21,2.88]
[1755424614027,2.85,192.23,192.21,2.88]
[1755424614828,2.85,192.22,192.21,2.88]
[1755424616329,6.6961941,192.22,192.21,2.88]
[1755424617230,2.85,192.22,192.21,2.88]
[1755424618836,8.58729281,192.22,192.2,2.88]
[1755424619032,2.85,192.26,192.2,2.88]
[1755424619223,8.58638976,192.25,192.2,2.88]
[1755424619423,2.85,192.23,192.2,2.88]
[1755424619631,2.85,192.21,192.2,2.88]
[1755424620329,2.85,192.2,192.18,2.88]
[1755424620631,2.85,192.2,192.19,2.88]
[1755424620933,6.69256719,192.2,192.19,2.88]
[1755424621131,2.85,192.19,192.15,1.33312668]
[1755424621329,2.85,192.18,192.16,2.88]
[1755424623730,2.85,192.25,192.12,2.08388783]
[1755424623926,2.85,192.23,192.13,2.88]
[1755424624127,2.85,192.21,192.13,2.88]
[1755424624331,2.85,192.19,192.13,2.88]
[1755424626937,2.85,192.19,192.11,2.88]
[1755424627138,2.85,192.17,192.11,2.88]
[1755424627338,2.85,192.15,192.11,2.88]
[1755424627539,2.85,192.22,192.11,2.88]
[1755424627739,2.85,192.2,192.11,2.88]
[1755424627937,8.56864956,192.19,192.11,2.88]
[1755424628239,2.85,192.17,192.11,2.88]
[1755424628438,2.85,192.15,192.11,2.88]
[1755424628940,2.85,192.14,192.11,2.88]
[1755424631839,2.85,192.16,192.11,2.88]
[1755424632136,2.85,192.17,192.13,2.88]
[1755424634040,2.08388783,192.23,192.13,2.88]
[1755424634246,2.85,192.16,192.13,2.88]
[1755424634438,2.85,192.24,192.16,2.88]
[1755424634634,8.5898684,192.23,192.16,2.88]
[1755424634838,2.85,192.21,192.16,2.88]
[1755424635342,2.85,192.2,192.16,2.88]
[1755424636042,2.85,192.27,192.16,2.88]
[1755424636244,2.85,192.25,192.16,2.88]
[1755424636447,8.59041802,192.24,192.16,2.88]
[1755424636746,2.85,192.22,192.16,2.88]
[1755424637047,2.85,192.2,192.16,2.88]
[1755424637643,2.85,192.2,192.17,2.82]
[1755424637843,2.85,192.2,192.15,2.82]
[1755424638039,2.85,192.2,192.16,2.82]
[1755424638444,2.85,192.2,192.13,2.82]
[1755424644852,3.87365355,192.19,192.13,2.82]
[1755424645047,2.83,192.18,192.13,2.82]
[1755424650859,2.83,192.24,192.13,2.82]
[1755424651057,2.83,192.22,192.13,2.82]
[1755424651355,2.83,192.2,192.13,2.82]
[1755424651652,2.83,192.18,192.13,2.82]
[1755424652758,2.83,192.18,192.15,1.33371456]
[1755424652959,2.83,192.18,192.17,2.82]
[1755424655156,4.16371456,192.24,192.17,1.33371456]
[1755424655459,2.83,192.22,192.18,2.82]
[1755424655760,8.62441009,192.21,192.18,2.82]
[1755424655960,8.62441009,192.2,192.19,1.33371456]
[1755424656163,8.62441009,192.2,192.19,4.15371456]
[1755424656563,3.88140648,192.2,192.19,4.15371456]
[1755424656757,3.88285173,192.21,192.2,2.82]
[1755424656963,8.62859095,192.21,192.2,2.82]
[1755424657258,2.83,192.28,192.2,2.82]
[1755424657459,8.6306748,192.27,192.23,2.82]
[1755424657659,2.83,192.25,192.23,2.82]
[1755424657957,8.6306748,192.24,192.23,2.82]
[1755424658960,11.4606748,192.24,192.23,2.82]
[1755424659358,2.83,192.26,192.23,2.82]
[1755424659556,3.88518102,192.25,192.23,2.82]
[1755424659758,2.83,192.26,192.23,2.82]
[1755424659962,3.88526326,192.25,192.23,2.82]
[1755424660162,104.93398133,192.3,192.23,2.82]
[1755424660357,2.83,192.25,192.23,2.82]
[1755424660668,2.83,192.29,192.23,2.82]
[1755424660858,2.83,192.27,192.23,2.82]
[1755424661162,8.63286972,192.26,192.19,2.08238638]
[1755424661360,3.88481962,192.25,192.2,2.82]
[1755424661560,2.83,192.27,192.2,2.82]
[1755424661763,3.88586428,192.26,192.2,2.82]
[1755424661954,2.83,192.27,192.2,2.82]
[1755424662161,107.76398133,192.3,192.23,2.82]
[1755424662459,2.83,192.28,192.23,2.82]
[1755424663065,104.93398133,192.3,192.23,2.82]
[1755424664663,2.83,192.29,192.23,2.82]
[1755424666863,104.93398133,192.3,192.26,2.82]
[1755424667166,2.83,192.37,192.26,2.82]
[1755424667465,2.95,192.35,192.26,2.82]
[1755424667664,8.61778752,192.34,192.26,2.82]
[1755424667867,8.61778752,192.33,192.26,2.82]
[1755424668066,2.95,192.31,192.26,2.82]
[1755424668364,2.95,192.31,192.25,4.90238638]
[1755424668567,2.95,192.31,192.25,2.08238638]
[1755424668767,2.95,192.31,192.27,2.82]
[1755424669267,2.95,192.31,192.28,2.82]
[1755424673468,2.95,192.31,192.25,2.08238638]
[1755424673772,2.08238638,192.38,192.29,2.82]
[1755424673970,2.95,192.36,192.26,2.82]
[1755424674161,8.61072755,192.35,192.26,2.82]
[1755424674365,2.95,192.33,192.26,2.82]
[1755424679276,2.95,192.33,192.28,0.03302753]
[1755424679470,2.95,192.3,192.28,0.03302753]
[1755424680175,2.95,192.3,192.29,2.82]
[1755424682983,2.95,192.32,192.3,2.82]
[1755424683986,2.95,192.35,192.29,2.82]
[1755424684371,2.95,192.35,192.28,1.36488337]
[1755424684372,2.95,192.35,192.3,1.33185584]
[1755424684580,2.95,192.35,192.31,2.82]
[1755424684881,2.95,192.35,192.32,2.82]
[1755424685385,2.95,192.35,192.31,2.82]
[1755424687684,2.95,192.35,192.32,2.82]
[1755424689791,2.95,192.35,192.3,1.33185584]
[1755424689987,2.95,192.35,192.33,2.82]
[1755424690485,2.95,192.35,192.3,1.33185584]
[1755424690687,2.95,192.35,192.32,2.82]
[1755424691094,2.95,192.35,192.3,1.33185584]
[1755424691294,4.28185584,192.35,192.3,2.82]
[1755424691592,2.95,192.34,192.3,2.82]
[1755424693397,2.95,192.34,192.28,2.82]
[1755424694093,1.33185584,192.33,192.25,1.33185584]
[1755424694301,1.33185584,192.31,192.24,1.33185584]
[1755424694489,1.33185584,192.31,192.27,2.82]
[1755424694490,2.95,192.3,192.27,2.82]
[1755424695395,2.95,192.3,192.26,2.82]
[1755424695697,2.95,192.3,192.27,2.82]
[1755424697298,2.95,192.3,192.23,1.33185584]
[1755424697503,2.88,192.28,192.24,2.87]
[1755424697800,2.88,192.28,192.25,2.87]
[1755424698597,2.88,192.28,192.22,1.33185584]
[1755424698792,2.88,192.28,192.26,2.87]
[1755424700097,3.86849935,192.27,192.26,2.87]
[1755424700296,2.88,192.26,192.24,2.87]
[1755424700997,2.88,192.26,192.22,1.33185584]
[1755424701190,2.88,192.26,192.25,2.87]
[1755424701393,6.75077033,192.26,192.25,2.87]
[1755424701993,3.87077033,192.26,192.25,2.87]
[1755424702398,8.60936196,192.26,192.25,2.87]
[1755424705395,2.88,192.3,192.25,4.20185584]
[1755424705596,8.61365131,192.29,192.26,2.87]
[1755424705799,8.61365131,192.28,192.26,2.87]
[1755424706002,3.87354891,192.27,192.26,2.87]
[1755424706200,3.87354891,192.29,192.26,2.87]
[1755424706401,8.61427053,192.28,192.26,2.87]
[1755424706600,3.87354891,192.27,192.26,2.87]
[1755424706802,3.87354891,192.28,192.25,1.33185584]
[1755424706998,3.87354891,192.27,192.26,2.87]
[1755424707199,3.87354891,192.29,192.26,2.87]
[1755424707504,11.49432521,192.28,192.26,2.87]
[1755424707706,3.87354891,192.27,192.26,2.87]
[1755424708004,3.87411832,192.27,192.26,2.87]
[1755424709211,6.75411832,192.27,192.26,2.87]
[1755424710413,2.88,192.32,192.26,2.87]
[1755424710602,8.61493814,192.31,192.26,2.87]
[1755424710802,8.61493814,192.3,192.26,2.87]
[1755424711003,8.61493814,192.29,192.26,2.87]
[1755424711203,3.87417838,192.28,192.26,2.87]
[1755424711408,2.88,192.3,192.26,2.87]
[1755424711705,8.61411018,192.29,192.26,2.87]
[1755424711905,3.8738082,192.28,192.26,2.87]
[1755424712099,2.88,192.29,192.26,2.87]
[1755424712303,3.87367424,192.28,192.26,2.87]
[1755424712505,2.88,192.3,192.26,2.87]
[1755424712705,8.61401477,192.29,192.27,1.33185584]
[1755424713011,2.88,192.3,192.28,2.87]
[1755424713207,8.61375241,192.29,192.28,2.87]
[1755424713604,3.87363645,192.29,192.28,2.87]
[1755424715008,6.75363645,192.29,192.28,2.87]
[1755424716411,3.87363645,192.29,192.28,2.87]
[1755424717410,6.75363645,192.29,192.28,2.87]
[1755424719015,6.75363645,192.29,192.27,1.33185584]
[1755424719312,2.88,192.34,192.27,4.20185584]